[Event "Sardinia World Festival-A 2024"]
[Site "Orosei"]
[Date "2024.04.27"]
[Round "1.29"]
[White "Agmanov, Zhandos"]
[Black "Morros Faura, Ricard"]
[Result "1-0"]
[ECO "B22"]
[WhiteElo "2458"]
[BlackElo "2177"]
[Annotator "TA"]
[PlyCount "107"]
[EventDate "2024.04.26"]
[EventType "swiss"]
[EventCountry "ITA"]
[SourceTitle "playchess.com"]
[Source "ChessBase"]
[SourceQuality "1"]
[TimeControl "40/5400+30:1800+30"]

{[%evp 38,107,60,0,63,4,8,0,0,0,89,0,0,-52,6,10,109,107,102,104,100,81,95,99,116,103,101,101,193,110,108,108,162,0,164,0,172,187,175,99,176,121,120,98,93,94,236,240,277,220,534,566,570,553,567,556,556,535,565,539,545,424,945,904,1058,1021,1681,1774,1956,1961,1597,1442]} 1. e4 {[%emt 0:00:05]} c5 {[%emt 0:00:21]} 2. Nf3 {[%emt 0:00:27]} e6 {[%emt 0:00:37]} 3. c3 {[%emt 0:02:49]} Nf6 {[%emt 0:01:31]} 4. e5 {[%emt 0:00:34]} Nd5 {[%emt 0:00:10]} 5. d4 {[%emt 0:00:39]} cxd4 {[%emt 0:00:32]} 6. cxd4 {[%emt 0:00:16]} b6 {[%emt 0:01:00]} 7. Bc4 {[%emt 0:05:14]} Bb7 {[%emt 0:00:52]} 8. O-O {[%emt 0:02:24]} d6 {[%emt 0:05:26] B22: Sicilian: 2 c3.} 9. Bg5 {[%emt 0:16:31]} Be7 {[%emt 0:09:23]} 10. Bxd5 {[%emt 0:00:12]} Bxd5 {[%emt 0:01:14]} 11. Bxe7 {[%emt 0:00:14]} Qxe7 {[%emt 0:01:16]} 12. Nc3 {[%emt 0:00:04]} Bb7 {[%emt 0:28:53]} 13. Nb5 {[%emt 0:42:44]} dxe5 {[%emt 0:01:15]} 14. Rc1 $146 {[%emt 0:00:32]} ({Predecessor:} 14. dxe5 O-O 15. Qd6 Nc6 16. Rfc1 Rfd8 17. Qxe7 Nxe7 18. Rc7 Ba6 19. a4 Bxb5 20. axb5 {½-½ Kharchenko,B (2477)-Gogin,M (2296) Chigorin Memorial 25th 2017 (8)}) 14... Na6 {[%emt 0:01:23]} 15. Nxe5 {[%emt 0:01:54]} O-O {[%emt 0:01:21]} 16. a3 {[%emt 0:02:36]} Rfd8 {[%emt 0:02:52]} 17. Qe2 {[%emt 0:10:04]} Rd5 {[%emt 0:06:22]} 18. Rc3 {[%emt 0:08:29]} f6 {[%emt 0:05:05]} 19. Nc6 {[%emt 0:00:24]} Qd7 {[%emt 0:03:33]} 20. Rfc1 {[%emt 0:02:11]} (20. Nbxa7 $14 Rg5 21. h4 Rxg2+ (21... Rxa7 $2 22. hxg5 Bxc6 23. Rfc1 $18) 22. Kxg2 Rxa7 23. Qf3) 20... Re8 {[%emt 0:06:08]} ({Black should try} 20... e5 $11) 21. Nbxa7 {[%emt 0:01:06]} (21. Ncxa7 $14 e5 22. Re1) 21... e5 $1 $11 {[%emt 0:11:26]} 22. Re3 {[%emt 0:00:17]} Re6 $1 {[%emt 0:01:45]} 23. dxe5 {[%emt 0:00:55]} Nc5 {[%emt 0:08:04]} (23... Bxc6 $11 {remains equal.} 24. Qxa6 Bb7) 24. Nb4 {[%emt 0:00:36]} (24. exf6 $1 $16 Rxe3 (24... Bxc6 $2 25. Rxe6 Qxe6 26. Qxe6+ Nxe6 27. Nxc6 $18) 25. fxe3 (25. f7+ Kxf7 26. fxe3 Bxc6 $14) 25... Bxc6 26. Nxc6 Qxc6 27. b4 gxf6 28. h3 (28. bxc5 Rxc5 29. Rf1 Rc3 $14)) 24... Rd2 $11 {[%emt 0:00:59]} 25. Qc4 {[%emt 0:00:48]} (25. Qb5 $1 $11) 25... Rd4 {[%emt 0:00:19]} (25... fxe5 $15 26. Nb5 Rxb2) 26. Qb5 $11 {[%emt 0:00:48]} Rd1+ {[%emt 0:00:29]} (26... fxe5 $11 {keeps the balance.} 27. Qxd7 Rxd7) 27. Rxd1 $1 $16 {[%emt 0:00:26]} (27. Re1 $6 Rxc1 (27... Rxe1+ 28. Rxe1 Qd2 29. Qe2 $11) 28. Rxc1 Qd2 $11) 27... Qxd1+ {[%emt 0:00:02]} 28. Qf1 {[%emt 0:00:01]} Qd2 {[%emt 0:01:00]} 29. Re2 {[%emt 0:00:29]} Qg5 {[%emt 0:00:30]} 30. f4 {[%emt 0:00:35]} Qg4 {[%emt 0:00:16]} 31. h3 {[%emt 0:00:36]} Qg3 {[%emt 0:00:56]} 32. Qf2 {[%emt 0:00:29]} Qb3 {[%emt 0:00:20]} (32... Qxf2+ $16 {was necessary.} 33. Kxf2 Ne4+ 34. Ke3 Ng3) 33. Qd4 {[%emt 0:00:58]} (33. Nb5 $1 $18 {[%cal Rb5d4] Hoping for Nd4.} fxe5 34. fxe5 (34. Rxe5 Rg6 $18)) 33... Qa4 $16 {[%emt 0:01:03]} 34. f5 {[%emt 0:00:24]} Re8 {[%emt 0:00:30]} (34... Rxe5 $16 35. Rxe5 fxe5 36. Qxe5 (36. Qd8+ Kf7 $11) 36... h6) 35. Qc4+ $2 {[%emt 0:00:12]} ({White should play} 35. exf6 $1 $18 {Threatens to win with b3.} Rxe2 36. Qc4+ Re6 37. fxe6 Qd1+ 38. Qf1 Qd4+ (38... Qxf1+ $2 39. Kxf1 gxf6 40. Nb5 $18) 39. Qf2 Nxe6 40. fxg7 (40. Qxd4 Nxd4 41. fxg7 h5 $14)) 35... Kh8 $2 {[%emt 0:00:15]} (35... Kf8 $1 $11 {and Black stays safe.} 36. Qh4 (36. Nb5 Ba6 $17) 36... Qxa7 37. Qxh7 Rxe5 (37... fxe5 $2 38. f6 $18) 38. Qh8+ Kf7 39. Rxe5 fxe5) 36. Nb5 $2 {[%emt 0:00:10]} (36. b3 $18 Qd7 (36... Qxa7 $2 37. Qf7 $18) 37. e6 Qd1+ 38. Kf2 (38. Kh2 Nxb3 39. Rf2 Nd4 $16)) 36... Qd1+ $2 {[%emt 0:00:26]} (36... Ba6 $1 $11 37. exf6 (37. Qf7 Qd1+ 38. Kh2 Bxb5 $15) 37... Qd1+ (37... Qxb5 $2 38. Qf7 $18) (37... Bxb5 38. fxg7+ Kxg7 39. Qd4+ Kg8 40. Qd5+ Kf8 41. Qd6+ Kg8 42. Qd5+ Kf8 43. Re5 $16) 38. Kh2 Qxe2 39. Qxe2 Rxe2) 37. Kh2 $18 {[%emt 0:00:05]} fxe5 {[%emt 0:00:27]} 38. Nc3 {[%emt 0:01:32]} (38. Qf7 $18 {[%cal Rf7e8]} Rg8 39. Rxe5) 38... Qd7 {[%emt 0:00:21] [#]} (38... Qd6 $16) 39. Qg4 {[%emt 0:00:37]} (39. Qb5 $1 $18) 39... e4 $16 {[%emt 0:00:38]} 40. Qf4 {[%emt 0:00:16]} Rf8 {[%emt 0:00:24] [#]} 41. Rd2 $1 {[%emt 0:30:39]} Qf7 {[%emt 0:31:36]} (41... Nd3 $16) 42. Rd6 $18 {[%emt 0:00:00]} h6 {[%emt 0:00:00]} 43. Nbd5 {[%emt 0:00:00]} (43. Rxb6 $6 Qxf5 44. Qxf5 Rxf5 $18) 43... Re8 $2 {[%emt 0:00:00]} (43... Bxd5 {is a better chance.} 44. Nxd5 (44. Rxd5 Na4 $16) 44... Nb7) 44. Rxh6+ $18 {[%emt 0:00:00]} (44. Nxb6 e3 45. Ne2 Ba6 $15) 44... gxh6 {[%emt 0:00:00]} 45. Qxh6+ {[%emt 0:00:00]} Qh7 {[%emt 0:00:00]} 46. Qxh7+ {[%emt 0:00:00]} (46. Qxb6 Qxf5 (46... Bxd5 $2 47. Nxd5 Nd7 48. Qf2 $19) 47. Qh6+ (47. Qxc5 $2 Qe5+ 48. Kg1 e3 $19) 47... Kg8 (47... Qh7 48. Qxh7+ Kxh7 49. Nf6+ Kh8 50. Nxe8 $18) 48. Nf6+ Kf7 49. Nxe8 Qe5+ (49... Kxe8 50. Qe3 $15) 50. Kg1 Kxe8 $17) 46... Kxh7 {[%emt 0:00:00]} 47. Nf6+ {[%emt 0:00:00]} (47. Nxb6 $2 e3 48. Ne2 Ba6 $19) 47... Kh6 {[%emt 0:00:00]} 48. Nxe8 {[%emt 0:00:00]} e3 {[%emt 0:00:00]} 49. Nf6 {[%emt 0:00:00]} Na4 {[%emt 0:00:00]} (49... Kg5 $142) 50. Ng4+ $18 {[%emt 0:00:00]} (50. Nxa4 $2 e2 51. Ng4+ Kg5 52. Nxb6 (52. h4+ Kxg4 53. Nxb6 e1=Q) 52... e1=Q $19) 50... Kg5 {[%emt 0:00:00]} 51. Nxe3 {[%emt 0:00:00]} (51. Nxa4 $2 {loses.} e2 (51... Kxf5 $2 {too greedy.} 52. Nxe3+ Kf4 53. Nd1 $18) 52. Nxb6 (52. h4+ {leads to mate.} Kxg4 53. Nxb6 e1=Q) 52... e1=Q $19) 51... Nxb2 {[%emt 0:00:00]} 52. g4 {[%emt 0:00:00]} Nd3 {[%emt 0:00:17]} 53. Kg3 {[%emt 0:00:00]} Nc5 {[%emt 0:00:33]} 54. Ned5 {[%emt 0:00:00]} 1-0

[Event "Sardinia World Festival-A 2024"]
[Site "Orosei"]
[Date "2024.04.27"]
[Round "1.30"]
[White "Akshit Kumar J"]
[Black "Bronstein, Or"]
[Result "1/2-1/2"]
[ECO "B92"]
[WhiteElo "2172"]
[BlackElo "2458"]
[Annotator "TA"]
[PlyCount "127"]
[EventDate "2024.04.26"]
[EventType "swiss"]
[EventCountry "ITA"]
[SourceTitle "playchess.com"]
[Source "ChessBase"]
[SourceQuality "1"]
[TimeControl "40/5400+30:1800+30"]

{[%evp 23,127,14,8,12,18,14,20,0,0,0,0,0,0,0,0,-8,0,0,0,-35,20,-15,0,0,25,23,21,15,24,20,43,26,46,44,53,23,73,41,70,19,58,68,52,46,56,58,50,0,0,0,0,0,0,0,0,0,0,0,0,0,0,0,0,0,0,0,0,0,7,0,0,0,20,8,8,8,80,0,13,7,37,26,47,47,47,47,61,8,45,45,45,8,8,8,22,23,84,130,203,0,0,0,187,0,0,0]} 1. e4 {[%emt 0:00:03]} c5 {[%emt 0:01:02]} 2. Nf3 {[%emt 0:00:05]} d6 {[%emt 0:00:17]} 3. d4 {[%emt 0:00:04]} cxd4 {[%emt 0:00:06]} 4. Nxd4 {[%emt 0:00:03]} Nf6 {[%emt 0:00:08]} 5. Nc3 {[%emt 0:00:03]} a6 {[%emt 0:00:07]} 6. Be2 {[%emt 0:00:02]} e5 {[%emt 0:00:59]} 7. Nb3 {[%emt 0:00:05]} Be7 {[%emt 0:00:08]} 8. Be3 {[%emt 0:00:18]} Be6 {[%emt 0:00:39]} 9. O-O {[%emt 0:00:06]} O-O {[%emt 0:00:22]} 10. Re1 {[%emt 0:00:03] B92: Sicilian Najdorf: 6 Be2.} Nbd7 {[%emt 0:08:03]} 11. a4 {[%emt 0:00:06]} Qc7 {[%emt 0:00:16]} 12. a5 {[%emt 0:00:04]} Rfc8 {[%emt 0:00:35]} 13. Qd2 {[%emt 0:00:07]} Qc6 {[%emt 0:01:55]} 14. Bf3 {[%emt 0:00:04]} Ng4 $146 {[%emt 0:00:57]} ({Predecessor:} 14... Bf8 15. h3 h6 16. Rec1 b5 17. axb6 Nxb6 18. Na5 Qc7 19. Nd5 Bxd5 20. exd5 e4 {1-0 Arjun,K (2513)-Vantika,A (2371) Dubai op 22nd 2022 (6)}) 15. Bxg4 {[%emt 0:05:24]} Bxg4 {[%emt 0:03:16]} 16. Nd5 {[%emt 0:00:05]} Bf8 {[%emt 0:01:21]} 17. c3 {[%emt 0:12:00]} Be6 {[%emt 0:07:33]} 18. Nc1 {[%emt 0:09:54]} f5 {[%emt 0:13:00]} 19. f3 {[%emt 0:02:57]} Bxd5 {[%emt 0:24:49]} 20. exd5 {[%emt 0:18:28]} Qc4 {[%emt 0:02:29]} 21. Qd3 {[%emt 0:03:23]} Nf6 {[%emt 0:06:59]} (21... Qxd3 $15 22. Nxd3 Nf6) 22. Rd1 {[%emt 0:03:43]} f4 {[%emt 0:03:00]} (22... Qxd3 {simplifies} 23. Rxd3 Rc7 24. Rd1 Rac8) 23. Bf2 {[%emt 0:05:48]} Be7 {[%emt 0:05:15]} 24. Qxc4 {[%emt 0:06:44]} Rxc4 {[%emt 0:00:01]} 25. Nb3 {[%emt 0:00:20]} Rcc8 {[%emt 0:08:51]} 26. Ra4 {[%emt 0:00:54]} Bd8 {[%emt 0:02:15]} 27. Rb4 {[%emt 0:07:33]} Rc7 {[%emt 0:00:01]} 28. Bb6 {[%emt 0:02:07]} Rd7 {[%emt 0:03:30]} 29. c4 {[%emt 0:02:11]} Rc8 {[%emt 0:03:19]} (29... Be7 $11 {remains equal.}) 30. Nd2 {[%emt 0:01:25]} Kf7 {[%emt 0:01:04]} 31. Kf2 {[%emt 0:00:49]} (31. Bxd8 $14 Rcxd8 32. g3) 31... Ke8 {[%emt 0:00:13]} 32. g3 {[%emt 0:01:42]} fxg3+ {[%emt 0:01:53]} 33. hxg3 {[%emt 0:00:26]} Rf7 {[%emt 0:01:57]} 34. Ke2 {[%emt 0:03:25]} h5 {[%emt 0:00:10]} 35. f4 {[%emt 0:04:24]} ({Better is} 35. Kd3 $14) 35... exf4 $11 {[%emt 0:00:53]} 36. gxf4 {[%emt 0:00:06]} Kd7 {[%emt 0:00:16]} 37. Nf3 {[%emt 0:08:54]} Bxb6 {[%emt 0:00:28]} 38. Rxb6 {[%emt 0:01:34]} Rxc4 {[%emt 0:00:38]} 39. Rxb7+ {[%emt 0:00:04]} Ke8 {[%emt 0:00:21]} 40. Rb8+ {[%emt 0:01:29]} Kd7 {[%emt 0:00:01]} 41. Kd3 {[%emt 0:07:04]} Rc8 {[%emt 0:09:28]} (41... Rxf4 42. Rb7+ Kd8 43. Rxf7 $18) 42. Rb7+ {[%emt 0:15:29]} Ke8 {[%emt 0:05:02]} 43. Re1+ {[%emt 0:03:59]} Kf8 {[%emt 0:00:01]} 44. Rxf7+ {[%emt 0:01:29]} Kxf7 {[%emt 0:00:01]} 45. Re6 {[%emt 0:00:33]} Nxd5 {[%emt 0:14:37]} 46. Ng5+ {[%emt 0:01:19]} Kf8 {[%emt 0:02:03]} 47. Rxd6 {[%emt 0:02:04]} Nb4+ {[%emt 0:01:00]} 48. Ke4 {[%emt 0:01:29]} Rc4+ {[%emt 0:02:26]} 49. Kf5 {[%emt 0:00:32]} Rc6 {[%emt 0:00:15] [#]} (49... Ke7 $11 50. Re6+ Kd7) 50. Rd8+ {[%emt 0:03:10]} ({White should try} 50. Rd4 $1 $16 {[%cal Rd4b4]} Nc2 51. Rd7 g6+ 52. Ke5) 50... Ke7 $11 {[%emt 0:00:02]} 51. Rg8 {[%emt 0:00:05]} Rf6+ {[%emt 0:01:11]} 52. Ke4 {[%emt 0:00:06]} g6 {[%emt 0:00:26]} 53. Rb8 {[%emt 0:01:04]} Nc6 {[%emt 0:00:15]} 54. Rb7+ {[%emt 0:00:19]} Kd6 {[%emt 0:00:54]} 55. Rb6 {[%emt 0:00:03]} (55. Nf7+ $14 Kc5 56. Ne5 Nxe5 57. fxe5) 55... Kc7 {[%emt 0:00:39]} 56. Rxa6 {[%emt 0:00:24]} Rd6 {[%emt 0:00:06]} 57. Nf7 {[%emt 0:02:15]} Rd4+ {[%emt 0:00:11]} 58. Ke3 {[%emt 0:00:06]} Rb4 {[%emt 0:01:00]} 59. Ne5 {[%emt 0:00:52]} Rb3+ {[%emt 0:00:35]} (59... Nxe5 $11 60. fxe5 h4) 60. Ke4 $16 {[%emt 0:00:22]} Rb4+ {[%emt 0:00:11]} (60... Nxe5 $16 {was necessary.} 61. fxe5 Rxb2) 61. Ke3 $2 {[%emt 0:00:30]} (61. Kd5 $18 Nxe5 62. fxe5 Rb5+ 63. Ke6) 61... Rb3+ $11 {[%emt 0:00:46]} 62. Ke4 $2 {[%emt 0:00:31]} (62. Kd2 $11 Nxe5 63. fxe5 Rxb2+ 64. Ke3) 62... Rb4+ $18 {[%emt 0:00:25]} 63. Kf3 $2 {[%emt 0:00:40]} (63. Kd5 $18 Nxe5 64. fxe5 Rb5+ 65. Ke6) 63... Rb3+ $1 $11 {[%emt 0:00:47]} 64. Ke4 {[%emt 0:00:29]} 1/2-1/2

[Event "Sardinia World Festival-A 2024"]
[Site "Orosei"]
[Date "2024.04.27"]
[Round "1.31"]
[White "Royal, Shreyas"]
[Black "Sbarra, Marco"]
[Result "1-0"]
[ECO "C97"]
[WhiteElo "2455"]
[BlackElo "2171"]
[Annotator "TA"]
[PlyCount "111"]
[EventDate "2024.04.26"]
[EventType "swiss"]
[EventCountry "ITA"]
[SourceTitle "playchess.com"]
[Source "ChessBase"]
[SourceQuality "1"]
[TimeControl "40/5400+30:1800+30"]

{[%evp 49,111,27,52,45,50,37,53,41,66,65,67,-44,47,7,0,-55,-60,-69,10,0,27,27,85,92,146,0,29,25,32,7,263,244,277,274,302,278,214,188,150,25,23,15,63,63,539,483,779,810,643,307,322,295,279,229,1078,1038,948,1008,776,83,29993,29992,29994,29995]} 1. e4 {[%emt 0:00:06]} e5 {[%emt 0:00:05]} 2. Nf3 {[%emt 0:00:12]} Nc6 {[%emt 0:00:04]} 3. Bb5 {[%emt 0:00:18]} a6 {[%emt 0:00:07]} 4. Ba4 {[%emt 0:00:05]} Nf6 {[%emt 0:00:16]} 5. O-O {[%emt 0:00:22]} Be7 {[%emt 0:00:21]} 6. Re1 {[%emt 0:00:12]} b5 {[%emt 0:00:08]} 7. Bb3 {[%emt 0:00:04]} d6 {[%emt 0:00:13]} 8. c3 {[%emt 0:00:21]} O-O {[%emt 0:00:12]} 9. h3 {[%emt 0:00:07]} Na5 {[%emt 0:02:04]} 10. Bc2 {[%emt 0:00:30]} c5 {[%emt 0:00:21]} 11. d4 {[%emt 0:00:12]} Qc7 {[%emt 0:00:09]} 12. d5 {[%emt 0:00:53]} Nc4 {[%emt 0:01:55]} 13. b3 {[%emt 0:00:58] C97: Closed Ruy Lopez: Chigorin Defence: 11 d4 Qc7, sidelines.} Nb6 {[%emt 0:00:04]} 14. a4 {[%emt 0:00:05]} Rb8 {[%emt 0:11:17]} 15. a5 {[%emt 0:03:27]} Nbd7 {[%emt 0:00:21]} 16. c4 {[%emt 0:00:56]} b4 {[%emt 0:03:20]} 17. Nbd2 {[%emt 0:00:57]} Re8 $146 {[%emt 0:06:31]} ({Predecessor:} 17... g6 18. Nf1 Nh5 19. Bh6 Ng7 20. g4 Kh8 21. Ng3 Nf6 22. Qd3 Ng8 23. Bc1 Bd7 {½-½ Felgaer,R (2539)-Van Haastert,E (2416) Gibraltar Masters 6th 2008 (10)}) 18. Nf1 {[%emt 0:00:50]} Nf8 {[%emt 0:00:25]} 19. Ng3 {[%emt 0:11:48]} Ng6 {[%emt 0:01:21]} 20. Nf5 {[%emt 0:01:48]} Bf8 {[%emt 0:04:48]} 21. Nh2 {[%emt 0:02:26]} Kh8 {[%emt 0:06:10]} 22. h4 {[%emt 0:13:22]} Rb7 {[%emt 0:27:34]} 23. Kh1 {[%emt 0:07:16]} Qd8 {[%emt 0:01:42]} 24. Bg5 {[%emt 0:04:42]} h6 {[%emt 0:01:07]} 25. Bd2 {[%emt 0:00:22]} Ng8 {[%emt 0:07:24]} (25... Bxf5 $2 26. exf5 Nxh4 27. g3 $18) 26. g3 {[%emt 0:02:41]} N6e7 {[%emt 0:01:18]} 27. Ne3 {[%emt 0:01:11]} Nf6 {[%emt 0:01:32]} 28. Qf3 {[%emt 0:01:29]} Neg8 {[%emt 0:03:04]} 29. g4 {[%emt 0:07:21]} g6 {[%emt 0:21:07]} 30. Kg2 {[%emt 0:05:05]} (30. Qg3 $14) 30... Bg7 {[%emt 0:00:00]} ({Black should play} 30... h5 $15) 31. Rh1 {[%emt 0:00:35]} h5 {[%emt 0:00:00]} 32. Rag1 {[%emt 0:09:54]} (32. g5 $11 Nh7 33. Nd1) 32... hxg4 $15 {[%emt 0:00:00]} 33. Nhxg4 {[%emt 0:00:07]} Nxg4 {[%emt 0:00:00]} (33... Nh5 $15) 34. Nxg4 $11 {[%emt 0:00:34]} Bxg4 {[%emt 0:00:00]} (34... f5 $5 35. h5 (35. exf5 gxf5 36. Nh2 Bh6 $11) 35... g5 (35... fxg4 $2 36. hxg6+ $16) 36. exf5 Nh6 $14) 35. Qxg4 {[%emt 0:00:06]} Nf6 {[%emt 0:00:00]} (35... Bh6 $1 $11 {remains equal.} 36. Bxh6 Nxh6) 36. Qg5 $1 $16 {[%emt 0:02:05]} Kg8 {[%emt 0:00:00]} ({Better is} 36... Nh5) 37. Kf1 {[%emt 0:01:20]} (37. h5 $1 $16 {[%cal Rh5g6]} Nxh5 38. Rxh5 gxh5 39. Qxh5) 37... Qxa5 $11 {[%emt 0:00:00]} 38. h5 $1 {[%emt 0:00:59]} Qa2 $1 {[%emt 0:00:00]} 39. Bd3 $1 {[%emt 0:00:12]} (39. hxg6 $2 Qxc2 40. f3 Qd3+ (40... Qxb3 $2 41. Kf2 $19) 41. Kg2 Qxb3 $19) 39... Qxb3 $2 {[%emt 0:00:00][%mdl 8192] [#]} (39... Nh7 $1 $11 {and Black stays safe.} 40. Qe3 Nf8 (40... Qxb3 $2 41. hxg6 Nf6 42. Ke2 $18)) 40. Ke2 $1 $18 {[%emt 0:01:51]} Nxe4 {[%emt 0:02:08]} (40... Nxh5 41. Rxh5 Ra7 42. Rh3 $18) (40... Nh7 41. Qg3 g5 42. h6 $18 (42. Bxg5 f5 $18)) 41. Bxe4 {[%emt 0:30:13]} Qxc4+ {[%emt 0:30:08]} 42. Bd3 {[%emt 0:00:16]} Qd4 {[%emt 0:00:00]} 43. Be3 {[%emt 0:00:00]} (43. Bxa6 Rb6 44. h6 (44. hxg6 f6 $11) 44... Rxa6 $11) 43... Qb2+ {[%emt 0:00:00]} 44. Kf1 {[%emt 0:00:00]} (44. Kf3 $16 {Hoping for Be4.} f5 45. Kg2 (45. Qxg6 e4+ 46. Kg2 Rf7 $18)) 44... e4 $1 $11 {[%emt 0:00:00]} 45. Be2 {[%emt 0:00:00]} Qe5 {[%emt 0:00:00]} (45... Qa1+ $1 $11 46. Kg2 Qf6) 46. hxg6 $14 {[%emt 0:00:00]} (46. Bxa6 Qa1+ 47. Kg2 Qxa6 $15) 46... f5 $2 {[%emt 0:00:00][%mdl 8192]} (46... Qxg5 $14 47. gxf7+ (47. Rxg5 f5 $11) 47... Kxf7 48. Rxg5 (48. Bxg5 Rh8 $14) 48... Rh8 49. Bh5+ Kg8) 47. Bf4 {[%emt 0:00:00]} (47. Bxa6 Qa1+ (47... Bf6 $2 48. Qh5 $18) 48. Kg2 Qxa6 $11) 47... Qxd5 {[%emt 0:00:00]} (47... Qa1+ $142 48. Kg2 Qf6) 48. Kg2 $18 {[%emt 0:00:00]} (48. Bxa6 e3 49. Be2 (49. Bxb7 $2 e2+ 50. Ke1 Qd1#) (49. Bxe3 Ra7 $11) 49... exf2 50. Kxf2 (50. Rg2 $2 b3 $19) 50... Qd4+ (50... Bd4+ $2 51. Kg3 $18) 51. Be3 Qb2 $11) 48... Qe6 {[%emt 0:00:00]} 49. Rc1 {[%emt 0:03:58]} (49. Bxa6 Rb6 50. Be2 d5 $11) (49. Rh7 $142) 49... b3 {[%emt 0:00:00]} 50. Rhd1 {[%emt 0:00:37]} (50. Bxa6 Rb6 51. Rh7 (51. Bc4 d5 $11) 51... Rxa6 $11) (50. Bc4 d5 51. Rcd1 dxc4 $11) 50... d5 {[%emt 0:00:00]} 51. Rxd5 {[%emt 0:02:48]} Qxd5 $2 {[%emt 0:00:00]} (51... Bf6 52. Qxf5 b2) 52. Bc4 $1 $18 {[%emt 0:00:06]} (52. Bxa6 $2 {perishes.} e3+ 53. Kh2 Rb4 54. fxe3 b2 $19) 52... Qxc4 {[%emt 0:00:00]} 53. Rxc4 {[%emt 0:00:05]} b2 {[%emt 0:00:00] [#]} 54. Rxe4 $2 {[%emt 0:03:32]} (54. Qxf5 $3 $18 {[%mdl 512] is the precise move to win.} b1=Q 55. Qd5+ Kh8 56. Rc1 (56. Qxc5 $2 Qd1 $19) 56... Qxc1 57. Bxc1) 54... b1=Q $2 {[%emt 0:06:33][%mdl 8192]} (54... Rxe4 $16 55. Qd8+ (55. Qxf5 $2 {is the wrong capture.} Rbe7 $19) 55... Bf8 56. Qd5+ Kg7 57. Qxb7+ Kxg6 58. Qb6+ (58. Qxa6+ Kh7 $14) 58... Kh5) 55. Rxe8+ {[%emt 0:00:07]} Bf8 {[%emt 0:00:06]} 56. Qf6 {[%emt 0:00:26]} 1-0